[Event "*** Titled Tuesday Blitz"]
[Site "Chess.com"]
[Date "2020.11.24"]
[Round "8"]
[White "orestn"]
[Black "onetowin"]
[Result "1-0"]
[WhiteElo "2293"]
[BlackElo "2114"]
[TimeControl "180+1"]
[EndTime "11:46:33 PST"]
[Termination "orestn won by resignation"]

1. e4 {[%clk 0:03:00.9]} 1... c5 {[%clk 0:02:58.5]} 2. Nf3 {[%clk 0:03:00.2]}
2... e6 {[%clk 0:02:57.9]} 3. d4 {[%clk 0:03:00.5]} 3... cxd4 {[%clk 0:02:58]}
4. Nxd4 {[%clk 0:03:01.4]} 4... a6 {[%clk 0:02:57.9]} 5. c4 {[%clk 0:03:00.4]}
5... Qc7 {[%clk 0:02:57.4]} 6. Nc3 {[%clk 0:03:01.3]} 6... Nf6 {[%clk
0:02:56.2]} 7. Be2 {[%clk 0:03:00.4]} 7... Bb4 {[%clk 0:02:53.9]} 8. Nc2 {[%clk
0:02:58.9]} 8... Bxc3+ {[%clk 0:02:51.6]} 9. bxc3 {[%clk 0:02:59.8]} 9... Nxe4
{[%clk 0:02:49]} 10. Qd4 {[%clk 0:02:59.3]} 10... Nf6 {[%clk 0:02:47.9]} 11. Ba3
{[%clk 0:02:57.5]} 11... Nc6 {[%clk 0:02:46.1]} 12. Qe3 {[%clk 0:02:46.7]} 12...
d5 {[%clk 0:02:25.6]} 13. O-O {[%clk 0:02:32.4]} 13... Qe5 {[%clk 0:02:20.4]}
14. Qf3 {[%clk 0:02:07]} 14... Ne7 {[%clk 0:02:15.7]} 15. Rfe1 {[%clk
0:02:00.1]} 15... Qf5 {[%clk 0:02:12.5]} 16. Qxf5 {[%clk 0:01:47.4]} 16... Nxf5
{[%clk 0:02:13.4]} 17. Bd3 {[%clk 0:01:41.7]} 17... Ne7 {[%clk 0:02:06.8]} 18.
Ne3 {[%clk 0:01:32.9]} 18... Bd7 {[%clk 0:02:01.6]} 19. Bxe7 {[%clk 0:01:29]}
19... Kxe7 {[%clk 0:01:58.8]} 20. cxd5 {[%clk 0:01:29.5]} 20... Rac8 {[%clk
0:01:56.6]} 21. c4 {[%clk 0:01:23.3]} 21... Rhe8 {[%clk 0:01:51.3]} 22. Rab1
{[%clk 0:01:18.4]} 22... Rc7 {[%clk 0:01:46.1]} 23. Rb6 {[%clk 0:01:08.8]} 23...
Kf8 {[%clk 0:01:43.8]} 24. d6 {[%clk 0:00:59.2]} 24... Rc6 {[%clk 0:01:42.7]}
25. Rxc6 {[%clk 0:00:59.1]} 25... Bxc6 {[%clk 0:01:41.4]} 26. c5 {[%clk
0:00:59.3]} 26... Rd8 {[%clk 0:01:35.9]} 27. Rb1 {[%clk 0:00:55.2]} 27... Nd7
{[%clk 0:01:29.7]} 28. Rc1 {[%clk 0:00:54.4]} 28... h6 {[%clk 0:01:19.5]} 29. f3
{[%clk 0:00:52.9]} 29... Ne5 {[%clk 0:01:18.3]} 30. Be2 {[%clk 0:00:51.5]} 30...
Rc8 {[%clk 0:01:09.9]} 31. Kf2 {[%clk 0:00:41.3]} 31... Nd7 {[%clk 0:01:08.2]}
32. Bd3 {[%clk 0:00:37.6]} 32... Bd5 {[%clk 0:01:06.3]} 33. Nxd5 {[%clk
0:00:36.1]} 33... exd5 {[%clk 0:01:07.2]} 34. c6 {[%clk 0:00:32]} 34... Rxc6
{[%clk 0:01:02.8]} 35. Rxc6 {[%clk 0:00:30.4]} 35... bxc6 {[%clk 0:01:03.7]} 36.
Bxa6 {[%clk 0:00:31]} 36... Nb6 {[%clk 0:01:03.1]} 37. Bb7 {[%clk 0:00:30.5]}
37... c5 {[%clk 0:00:58.5]} 38. Ke3 {[%clk 0:00:29]} 38... Ke8 {[%clk
0:00:56.8]} 39. Bc6+ {[%clk 0:00:28.8]} 39... Kd8 {[%clk 0:00:56.5]} 40. a4
{[%clk 0:00:28.1]} 40... Nc4+ {[%clk 0:00:53.5]} 41. Kd3 {[%clk 0:00:27.1]}
41... Nxd6 {[%clk 0:00:49.7]} 42. Bxd5 {[%clk 0:00:26.6]} 42... Kc7 {[%clk
0:00:49.2]} 43. a5 {[%clk 0:00:22.6]} 43... f6 {[%clk 0:00:45.6]} 44. g3 {[%clk
0:00:17.7]} 44... Nc8 {[%clk 0:00:38.3]} 45. Kc4 {[%clk 0:00:15.1]} 45... Kd6
{[%clk 0:00:37.5]} 46. Be4 {[%clk 0:00:13.8]} 46... Na7 {[%clk 0:00:36.5]} 47.
a6 {[%clk 0:00:13.2]} 47... g5 {[%clk 0:00:31.3]} 48. g4 {[%clk 0:00:12.7]}
48... Nc8 {[%clk 0:00:28.8]} 49. Kb5 {[%clk 0:00:12.9]} 49... Na7+ {[%clk
0:00:18.7]} 50. Kb6 {[%clk 0:00:13]} 50... Nc8+ {[%clk 0:00:19.4]} 51. Kb7
{[%clk 0:00:13.2]} 51... c4 {[%clk 0:00:15.8]} 52. Kxc8 {[%clk 0:00:12.8]} 1-0

[Event "*** Titled Tuesday Blitz"]
[Site "Chess.com"]
[Date "2020.11.24"]
[Round "8"]
[White "WildTricks"]
[Black "Isajevsky_Anton"]
[Result "0-1"]
[WhiteElo "2456"]
[BlackElo "2587"]
[TimeControl "180+1"]
[EndTime "11:46:35 PST"]
[Termination "Isajevsky_Anton won by checkmate"]

1. f4 {[%clk 0:03:00.9]} 1... d5 {[%clk 0:02:58.4]} 2. Nf3 {[%clk 0:02:59.7]}
2... Bg4 {[%clk 0:02:58.6]} 3. e3 {[%clk 0:02:57.8]} 3... Nd7 {[%clk 0:02:57.7]}
4. Be2 {[%clk 0:02:58]} 4... e6 {[%clk 0:02:53.1]} 5. O-O {[%clk 0:02:57.5]}
5... Ngf6 {[%clk 0:02:51.4]} 6. b3 {[%clk 0:02:35]} 6... a5 {[%clk 0:02:49.1]}
7. a4 {[%clk 0:02:22.3]} 7... Be7 {[%clk 0:02:45.3]} 8. Bb2 {[%clk 0:02:21.5]}
8... O-O {[%clk 0:02:44.9]} 9. h3 {[%clk 0:02:13.7]} 9... Bxf3 {[%clk
0:02:26.7]} 10. Bxf3 {[%clk 0:02:14.6]} 10... Bd6 {[%clk 0:02:26]} 11. d4 {[%clk
0:02:13.3]} 11... c5 {[%clk 0:02:20.2]} 12. Nc3 {[%clk 0:02:12.2]} 12... cxd4
{[%clk 0:02:17.7]} 13. Nb5 {[%clk 0:02:12]} 13... Bb8 {[%clk 0:02:05.6]} 14.
Qxd4 {[%clk 0:02:09.4]} 14... Bc7 {[%clk 0:01:47]} 15. Nxc7 {[%clk 0:01:31.5]}
15... Qxc7 {[%clk 0:01:46.9]} 16. c4 {[%clk 0:01:31.7]} 16... Nc5 {[%clk
0:01:33.9]} 17. Qc3 {[%clk 0:01:11.9]} 17... dxc4 {[%clk 0:01:20.8]} 18. Qxc4
{[%clk 0:01:10.7]} 18... Rac8 {[%clk 0:01:20.4]} 19. Rac1 {[%clk 0:01:04.7]}
19... b6 {[%clk 0:01:18.7]} 20. b4 {[%clk 0:00:55.9]} 20... axb4 {[%clk
0:01:18.4]} 21. Qxb4 {[%clk 0:00:55.6]} 21... Qa7 {[%clk 0:01:09.6]} 22. Bxf6
{[%clk 0:00:30.4]} 22... gxf6 {[%clk 0:01:09.1]} 23. Rc4 {[%clk 0:00:27.3]}
23... Nd3 {[%clk 0:00:45.1]} 24. Qc3 {[%clk 0:00:25.9]} 24... Rxc4 {[%clk
0:00:45.5]} 25. Qxc4 {[%clk 0:00:26.8]} 25... Nc5 {[%clk 0:00:45.9]} 26. Ra1
{[%clk 0:00:18.7]} 26... Rd8 {[%clk 0:00:44.2]} 27. Qc3 {[%clk 0:00:15.3]} 27...
Kg7 {[%clk 0:00:42.9]} 28. a5 {[%clk 0:00:13.6]} 28... Rd3 {[%clk 0:00:30.9]}
29. Qb4 {[%clk 0:00:10.8]} 29... Rxe3 {[%clk 0:00:28.6]} 30. Qxb6 {[%clk
0:00:09.1]} 30... Qxb6 {[%clk 0:00:28]} 31. axb6 {[%clk 0:00:09.2]} 31... Rb3
{[%clk 0:00:28.9]} 32. Rc1 {[%clk 0:00:08.5]} 32... Nd3 {[%clk 0:00:20.5]} 33.
Rd1 {[%clk 0:00:02.6]} 33... Nxf4 {[%clk 0:00:19]} 34. b7 {[%clk 0:00:02.9]}
34... Nd5 {[%clk 0:00:19.1]} 35. Bxd5 {[%clk 0:00:02.7]} 35... exd5 {[%clk
0:00:20]} 36. Rxd5 {[%clk 0:00:03.3]} 36... Rxb7 {[%clk 0:00:20.7]} 37. Kh2
{[%clk 0:00:03.7]} 37... Kg6 {[%clk 0:00:21]} 38. Rd3 {[%clk 0:00:04.1]} 38...
f5 {[%clk 0:00:21.2]} 39. Rg3+ {[%clk 0:00:05]} 39... Kf6 {[%clk 0:00:21.4]} 40.
Ra3 {[%clk 0:00:05.9]} 40... Rb6 {[%clk 0:00:21.3]} 41. Ra7 {[%clk 0:00:05.9]}
41... f4 {[%clk 0:00:21]} 42. Ra4 {[%clk 0:00:06.2]} 42... Kg5 {[%clk
0:00:20.6]} 43. Ra5+ {[%clk 0:00:06.5]} 43... f5 {[%clk 0:00:20.4]} 44. Ra7
{[%clk 0:00:07]} 44... h5 {[%clk 0:00:19.4]} 45. Rg7+ {[%clk 0:00:06.5]} 45...
Rg6 {[%clk 0:00:20]} 46. Ra7 {[%clk 0:00:06.4]} 46... h4 {[%clk 0:00:20.6]} 47.
Ra4 {[%clk 0:00:06.3]} 47... Rd6 {[%clk 0:00:19.9]} 48. Ra8 {[%clk 0:00:06.2]}
48... f3 {[%clk 0:00:20]} 49. gxf3 {[%clk 0:00:03.5]} 49... Kf4 {[%clk
0:00:20.4]} 50. Ra4+ {[%clk 0:00:02.7]} 50... Kxf3 {[%clk 0:00:20.7]} 51. Rxh4
{[%clk 0:00:02.7]} 51... Rd2+ {[%clk 0:00:20.4]} 52. Kh1 {[%clk 0:00:01.2]}
52... Kg3 {[%clk 0:00:20.7]} 53. Ra4 {[%clk 0:00:01.2]} 53... Rd1# {[%clk
0:00:20.9]} 0-1

[Event "*** Titled Tuesday Blitz"]
[Site "Chess.com"]
[Date "2020.11.24"]
[Round "8"]
[White "Artyom_ChessMate"]
[Black "NikolaGry"]
[Result "1/2-1/2"]
[WhiteElo "2515"]
[BlackElo "2715"]
[TimeControl "180+1"]
[EndTime "11:46:36 PST"]
[Termination "Game drawn by repetition"]

1. e4 {[%clk 0:03:00.9]} 1... d6 {[%clk 0:02:59.3]} 2. d4 {[%clk 0:02:59.2]}
2... Nf6 {[%clk 0:02:59.9]} 3. Nc3 {[%clk 0:02:59.3]} 3... g6 {[%clk 0:03:00]}
4. f4 {[%clk 0:02:56.4]} 4... Bg7 {[%clk 0:02:59.4]} 5. Nf3 {[%clk 0:02:57.3]}
5... c5 {[%clk 0:02:59.6]} 6. Bb5+ {[%clk 0:02:53.7]} 6... Bd7 {[%clk
0:02:59.3]} 7. e5 {[%clk 0:02:53.9]} 7... Ng4 {[%clk 0:02:58.5]} 8. e6 {[%clk
0:02:45.5]} 8... Bxb5 {[%clk 0:02:57.8]} 9. exf7+ {[%clk 0:02:43.8]} 9... Kd7
{[%clk 0:02:57.6]} 10. Nxb5 {[%clk 0:02:43.6]} 10... Qa5+ {[%clk 0:02:57]} 11.
Nc3 {[%clk 0:02:43.9]} 11... cxd4 {[%clk 0:02:57]} 12. Nxd4 {[%clk 0:02:44.8]}
12... Bxd4 {[%clk 0:02:56.1]} 13. Qxd4 {[%clk 0:02:45.7]} 13... Nc6 {[%clk
0:02:55.9]} 14. Qc4 {[%clk 0:02:08.6]} 14... Qb4 {[%clk 0:02:23]} 15. Qe2 {[%clk
0:02:04.5]} 15... Nf6 {[%clk 0:02:13.9]} 16. Bd2 {[%clk 0:02:03.1]} 16... Rhf8
{[%clk 0:01:51.6]} 17. O-O {[%clk 0:01:37.7]} 17... Qc5+ {[%clk 0:01:40.5]} 18.
Be3 {[%clk 0:01:36.2]} 18... Qh5 {[%clk 0:01:38.5]} 19. Qxh5 {[%clk 0:01:12]}
19... Nxh5 {[%clk 0:01:37.5]} 20. g3 {[%clk 0:01:12.9]} 20... Rxf7 {[%clk
0:01:35.4]} 21. Rad1 {[%clk 0:01:12.4]} 21... Nf6 {[%clk 0:01:35]} 22. Kg2
{[%clk 0:01:10.8]} 22... Rc8 {[%clk 0:01:32.7]} 23. a3 {[%clk 0:01:10]} 23... b6
{[%clk 0:01:31]} 24. Rfe1 {[%clk 0:01:08.3]} 24... Na5 {[%clk 0:01:23.7]} 25.
Bc1 {[%clk 0:01:04.8]} 25... Nc4 {[%clk 0:01:20.5]} 26. Rd3 {[%clk 0:01:04.8]}
26... a6 {[%clk 0:01:18.3]} 27. b3 {[%clk 0:01:00.8]} 27... Na5 {[%clk
0:01:16.9]} 28. Bb2 {[%clk 0:01:01.2]} 28... b5 {[%clk 0:01:13.8]} 29. Re2
{[%clk 0:00:59.7]} 29... h5 {[%clk 0:01:07.7]} 30. Nd1 {[%clk 0:00:48.4]} 30...
h4 {[%clk 0:01:02.2]} 31. Ne3 {[%clk 0:00:48.4]} 31... hxg3 {[%clk 0:01:01.1]}
32. hxg3 {[%clk 0:00:49.3]} 32... Nc6 {[%clk 0:00:55.7]} 33. Bxf6 {[%clk
0:00:47.8]} 33... exf6 {[%clk 0:00:51.1]} 34. Nd5 {[%clk 0:00:48.2]} 34... Rb8
{[%clk 0:00:46.6]} 35. Red2 {[%clk 0:00:45.5]} 35... f5 {[%clk 0:00:42.9]} 36.
Re3 {[%clk 0:00:30.1]} 36... Ne7 {[%clk 0:00:35.8]} 37. Red3 {[%clk 0:00:25.9]}
37... Nxd5 {[%clk 0:00:34.1]} 38. Rxd5 {[%clk 0:00:26.8]} 38... Rb6 {[%clk
0:00:33.4]} 39. c4 {[%clk 0:00:26.5]} 39... bxc4 {[%clk 0:00:33.4]} 40. bxc4
{[%clk 0:00:27.4]} 40... Kc7 {[%clk 0:00:33.4]} 41. c5 {[%clk 0:00:26.4]} 41...
dxc5 {[%clk 0:00:33.6]} 42. Rxc5+ {[%clk 0:00:27.3]} 42... Rc6 {[%clk 0:00:34]}
43. Ra5 {[%clk 0:00:26.6]} 43... Rd7 {[%clk 0:00:32.7]} 44. Rb2 {[%clk
0:00:10.1]} 44... Rd3 {[%clk 0:00:29.7]} 45. Kh2 {[%clk 0:00:10.3]} 45... Rcc3
{[%clk 0:00:20.8]} 46. Rxa6 {[%clk 0:00:10.3]} 46... Rxg3 {[%clk 0:00:20.7]} 47.
Rc2 {[%clk 0:00:04.6]} 47... Rh3+ {[%clk 0:00:16.3]} 48. Kg2 {[%clk 0:00:04.9]}
48... Rg3+ {[%clk 0:00:16.6]} 49. Kh2 {[%clk 0:00:05.2]} 49... Rh3+ {[%clk
0:00:16.1]} 50. Kg2 {[%clk 0:00:05.5]} 50... Rg3+ {[%clk 0:00:14.3]} 51. Kh2
{[%clk 0:00:05.9]} 1/2-1/2

[Event "*** Titled Tuesday Blitz"]
[Site "Chess.com"]
[Date "2020.11.24"]
[Round "8"]
[White "TC2304"]
[Black "skoularikii"]
[Result "0-1"]
[WhiteElo "2327"]
[BlackElo "2467"]
[TimeControl "180+1"]
[EndTime "11:46:38 PST"]
[Termination "skoularikii won on time"]

1. d4 {[%clk 0:03:00.9]} 1... d5 {[%clk 0:02:30]} 2. c4 {[%clk 0:02:59.7]} 2...
c6 {[%clk 0:02:28.8]} 3. Nc3 {[%clk 0:02:59.6]} 3... Nf6 {[%clk 0:02:28.6]} 4.
e3 {[%clk 0:03:00.1]} 4... e6 {[%clk 0:02:28.2]} 5. Nf3 {[%clk 0:03:00.5]} 5...
Be7 {[%clk 0:02:28]} 6. Bd3 {[%clk 0:03:00.2]} 6... O-O {[%clk 0:02:27.4]} 7.
O-O {[%clk 0:03:00.2]} 7... dxc4 {[%clk 0:02:27.3]} 8. Bxc4 {[%clk 0:02:59.9]}
8... b5 {[%clk 0:02:28.2]} 9. Bd3 {[%clk 0:02:59.3]} 9... a6 {[%clk 0:02:28.8]}
10. Qe2 {[%clk 0:02:58.7]} 10... c5 {[%clk 0:02:29]} 11. dxc5 {[%clk 0:02:54.9]}
11... Bxc5 {[%clk 0:02:21.8]} 12. e4 {[%clk 0:02:52.8]} 12... Bb7 {[%clk
0:02:16.9]} 13. Bg5 {[%clk 0:02:51.7]} 13... h6 {[%clk 0:02:15.2]} 14. Bh4
{[%clk 0:02:48.7]} 14... Be7 {[%clk 0:02:12.8]} 15. Rfd1 {[%clk 0:02:45.7]}
15... Nh5 {[%clk 0:02:10.5]} 16. Bxb5 {[%clk 0:02:22.9]} 16... Qc7 {[%clk
0:02:09.4]} 17. Bxe7 {[%clk 0:02:15.6]} 17... Qxe7 {[%clk 0:02:07.5]} 18. Ba4
{[%clk 0:01:56]} 18... Nc6 {[%clk 0:02:05.1]} 19. Nd4 {[%clk 0:01:49.1]} 19...
Nxd4 {[%clk 0:01:59.8]} 20. Rxd4 {[%clk 0:01:48.8]} 20... Qg5 {[%clk 0:01:47.7]}
21. Qd2 {[%clk 0:01:25.5]} 21... Nf4 {[%clk 0:01:41.6]} 22. g3 {[%clk
0:01:23.1]} 22... e5 {[%clk 0:01:31.6]} 23. Rd7 {[%clk 0:01:17]} 23... Rad8
{[%clk 0:01:30.9]} 24. Kh1 {[%clk 0:01:03.1]} 24... Qh5 {[%clk 0:01:00.1]} 25.
gxf4 {[%clk 0:00:53.4]} 25... Bc8 {[%clk 0:01:00]} 26. Rd1 {[%clk 0:00:19.9]}
26... Qf3+ {[%clk 0:00:55.3]} 27. Kg1 {[%clk 0:00:19.9]} 27... Rxd7 {[%clk
0:00:47.4]} 28. Bxd7 {[%clk 0:00:19.1]} 28... Rd8 {[%clk 0:00:43.5]} 29. Qe3
{[%clk 0:00:13.5]} 29... Qxe3 {[%clk 0:00:32.5]} 30. fxe3 {[%clk 0:00:13.2]}
30... Rxd7 {[%clk 0:00:30]} 31. fxe5 {[%clk 0:00:11.3]} 31... Kf8 {[%clk
0:00:28.7]} 32. Kf2 {[%clk 0:00:10.4]} 32... Ke7 {[%clk 0:00:26.2]} 33. Rd4
{[%clk 0:00:10]} 33... Rb7 {[%clk 0:00:24.9]} 34. b3 {[%clk 0:00:09.8]} 34...
Ke6 {[%clk 0:00:24.4]} 35. Rd5 {[%clk 0:00:09.3]} 35... Bd7 {[%clk 0:00:23.2]}
36. Na4 {[%clk 0:00:07.9]} 36... Bxa4 {[%clk 0:00:22.8]} 37. bxa4 {[%clk
0:00:08.5]} 37... Rb2+ {[%clk 0:00:22.9]} 38. Kf3 {[%clk 0:00:09.2]} 38... Rxa2
{[%clk 0:00:22.3]} 39. Rd6+ {[%clk 0:00:08.7]} 39... Kxe5 {[%clk 0:00:22.2]} 40.
Rxa6 {[%clk 0:00:09.6]} 40... Rxh2 {[%clk 0:00:22.1]} 41. Ra7 {[%clk 0:00:09.8]}
41... Kf6 {[%clk 0:00:18.6]} 42. a5 {[%clk 0:00:09.7]} 42... Ra2 {[%clk
0:00:17.8]} 43. a6 {[%clk 0:00:09.9]} 43... h5 {[%clk 0:00:18.2]} 44. e5+ {[%clk
0:00:09.5]} 44... Kg6 {[%clk 0:00:17.7]} 45. Kf4 {[%clk 0:00:04.3]} 45... Ra4+
{[%clk 0:00:17.7]} 46. e4 {[%clk 0:00:04.3]} 46... Ra5 {[%clk 0:00:18.1]} 47.
Ra8 {[%clk 0:00:04.6]} 47... Ra1 {[%clk 0:00:17.9]} 48. a7 {[%clk 0:00:04.9]}
48... Ra3 {[%clk 0:00:17.8]} 49. e6 {[%clk 0:00:02.6]} 49... fxe6 {[%clk
0:00:17.6]} 50. Ke5 {[%clk 0:00:03.3]} 50... Ra6 {[%clk 0:00:17.4]} 51. Kf4
{[%clk 0:00:01.8]} 51... Ra5 {[%clk 0:00:16.3]} 0-1

[Event "*** Titled Tuesday Blitz"]
[Site "Chess.com"]
[Date "2020.11.24"]
[Round "8"]
[White "SlavenPastar"]
[Black "Aygehovit1992"]
[Result "1-0"]
[WhiteElo "2511"]
[BlackElo "2635"]
[TimeControl "180+1"]
[EndTime "11:46:39 PST"]
[Termination "SlavenPastar won on time"]

1. d4 {[%clk 0:03:00.9]} 1... Nf6 {[%clk 0:02:59.5]} 2. Nf3 {[%clk 0:03:01.1]}
2... g6 {[%clk 0:02:58.6]} 3. c4 {[%clk 0:03:01.2]} 3... Bg7 {[%clk 0:02:58.7]}
4. Nc3 {[%clk 0:03:01.4]} 4... d5 {[%clk 0:02:58.5]} 5. e3 {[%clk 0:03:01]} 5...
c6 {[%clk 0:02:56.2]} 6. Be2 {[%clk 0:02:58.4]} 6... O-O {[%clk 0:02:56.2]} 7.
O-O {[%clk 0:02:59]} 7... Bg4 {[%clk 0:02:55.8]} 8. Ne5 {[%clk 0:02:57.4]} 8...
Bxe2 {[%clk 0:02:55.1]} 9. Qxe2 {[%clk 0:02:58.3]} 9... Nbd7 {[%clk 0:02:55.2]}
10. cxd5 {[%clk 0:02:56.9]} 10... Nxe5 {[%clk 0:02:52.6]} 11. dxe5 {[%clk
0:02:56.9]} 11... Nxd5 {[%clk 0:02:53.1]} 12. Nxd5 {[%clk 0:02:53.2]} 12... Qxd5
{[%clk 0:02:54]} 13. f4 {[%clk 0:02:53.6]} 13... Rad8 {[%clk 0:02:50.5]} 14. b3
{[%clk 0:02:48.6]} 14... f6 {[%clk 0:02:43.2]} 15. Ba3 {[%clk 0:02:45.7]} 15...
Qe6 {[%clk 0:02:37.2]} 16. exf6 {[%clk 0:02:37.4]} 16... Bxf6 {[%clk 0:02:38.1]}
17. Rad1 {[%clk 0:02:25.1]} 17... b5 {[%clk 0:01:17.3]} 18. Bc5 {[%clk
0:02:10.8]} 18... a5 {[%clk 0:01:15.5]} 19. Bb6 {[%clk 0:02:03.6]} 19... Rxd1
{[%clk 0:01:14.2]} 20. Rxd1 {[%clk 0:02:04.5]} 20... a4 {[%clk 0:01:14.6]} 21.
bxa4 {[%clk 0:01:55]} 21... bxa4 {[%clk 0:01:15.5]} 22. Bd4 {[%clk 0:01:46.4]}
22... Rd8 {[%clk 0:00:54.5]} 23. Kf2 {[%clk 0:01:31.3]} 23... Qd5 {[%clk
0:00:34.2]} 24. Rd2 {[%clk 0:01:06.1]} 24... Qe6 {[%clk 0:00:04.6]} 25. h3
{[%clk 0:00:22.5]} 25... Kf7 {[%clk 0:00:03.6]} 26. Bxf6 {[%clk 0:00:19.3]}
26... Rxd2 {[%clk 0:00:04.5]} 27. Qxd2 {[%clk 0:00:19.6]} 27... exf6 {[%clk
0:00:04.9]} 28. Qc2 {[%clk 0:00:18.3]} 28... a3 {[%clk 0:00:03.3]} 29. e4 {[%clk
0:00:11.2]} 29... Qd6 {[%clk 0:00:02.9]} 30. Ke3 {[%clk 0:00:11.4]} 30... Qb4
{[%clk 0:00:02.2]} 31. Kd3 {[%clk 0:00:09.5]} 31... Qb5+ {[%clk 0:00:02.3]} 32.
Qc4+ {[%clk 0:00:09.1]} 32... Qxc4+ {[%clk 0:00:02]} 33. Kxc4 {[%clk 0:00:09.6]}
33... Ke6 {[%clk 0:00:02.9]} 34. Kc5 {[%clk 0:00:09.5]} 34... g5 {[%clk
0:00:03.1]} 35. g3 {[%clk 0:00:07.8]} 35... h5 {[%clk 0:00:03.4]} 36. h4 {[%clk
0:00:05.8]} 36... gxh4 {[%clk 0:00:01.7]} 37. gxh4 {[%clk 0:00:05.6]} 37... Kd7
{[%clk 0:00:02.3]} 38. Kb4 {[%clk 0:00:03.8]} 38... Kd6 {[%clk 0:00:02.6]} 39.
Kxa3 {[%clk 0:00:04.4]} 39... Kc5 {[%clk 0:00:03.5]} 40. e5 {[%clk 0:00:02.3]}
40... Kd4 {[%clk 0:00:04.4]} 41. exf6 {[%clk 0:00:02.2]} 41... c5 {[%clk
0:00:01.8]} 42. f7 {[%clk 0:00:03.1]} 1-0

[Event "*** Titled Tuesday Blitz"]
[Site "Chess.com"]
[Date "2020.11.24"]
[Round "8"]
[White "monalize"]
[Black "Marty435"]
[Result "1/2-1/2"]
[WhiteElo "2358"]
[BlackElo "2515"]
[TimeControl "180+1"]
[EndTime "11:46:39 PST"]
[Termination "Game drawn by repetition"]

1. e4 {[%clk 0:02:46.7]} 1... c5 {[%clk 0:02:58]} 2. Nf3 {[%clk 0:02:46.5]} 2...
d6 {[%clk 0:02:57]} 3. d4 {[%clk 0:02:46.4]} 3... cxd4 {[%clk 0:02:57.6]} 4.
Qxd4 {[%clk 0:02:46.6]} 4... Nc6 {[%clk 0:02:53.7]} 5. Qe3 {[%clk 0:02:46]} 5...
Nf6 {[%clk 0:02:52]} 6. h3 {[%clk 0:02:46.1]} 6... g6 {[%clk 0:02:49.9]} 7. Be2
{[%clk 0:02:46]} 7... Bg7 {[%clk 0:02:50.4]} 8. O-O {[%clk 0:02:45.9]} 8... O-O
{[%clk 0:02:50.2]} 9. Rd1 {[%clk 0:02:45.6]} 9... Qb6 {[%clk 0:02:45.1]} 10.
Qxb6 {[%clk 0:02:43.7]} 10... axb6 {[%clk 0:02:46]} 11. Nc3 {[%clk 0:02:40]}
11... Be6 {[%clk 0:02:46.1]} 12. a3 {[%clk 0:02:22.7]} 12... Nd7 {[%clk
0:02:36.7]} 13. Nd5 {[%clk 0:02:18.9]} 13... Rfc8 {[%clk 0:02:23.1]} 14. c3
{[%clk 0:02:13]} 14... Bxd5 {[%clk 0:02:18.2]} 15. exd5 {[%clk 0:02:02.6]} 15...
Na5 {[%clk 0:02:19.1]} 16. Rb1 {[%clk 0:01:50.5]} 16... Nb3 {[%clk 0:02:11.4]}
17. Be3 {[%clk 0:01:44.3]} 17... Ra5 {[%clk 0:02:08]} 18. Nd2 {[%clk 0:01:38.4]}
18... Nxd2 {[%clk 0:01:59.2]} 19. Rxd2 {[%clk 0:01:37.9]} 19... b5 {[%clk
0:01:54.7]} 20. Re1 {[%clk 0:01:26.6]} 20... Ne5 {[%clk 0:01:40.5]} 21. Rc2
{[%clk 0:01:10.3]} 21... Nc4 {[%clk 0:01:34.8]} 22. Bg5 {[%clk 0:01:08.2]} 22...
Bf6 {[%clk 0:01:15.7]} 23. Bc1 {[%clk 0:01:01.1]} 23... Nb6 {[%clk 0:01:07.1]}
24. Bf3 {[%clk 0:00:59.8]} 24... h5 {[%clk 0:00:58]} 25. Be3 {[%clk 0:00:51.1]}
25... Nc4 {[%clk 0:00:56.6]} 26. Bc1 {[%clk 0:00:50.8]} 26... Kg7 {[%clk
0:00:55]} 27. g3 {[%clk 0:00:44]} 27... Ra7 {[%clk 0:00:50.7]} 28. Kf1 {[%clk
0:00:41.5]} 28... Ne5 {[%clk 0:00:49.3]} 29. Be2 {[%clk 0:00:40.6]} 29... Nc4
{[%clk 0:00:47.8]} 30. Bf3 {[%clk 0:00:39.4]} 30... Ra5 {[%clk 0:00:45.7]} 31.
Rd1 {[%clk 0:00:37]} 31... Kf8 {[%clk 0:00:42.6]} 32. Rcd2 {[%clk 0:00:36.1]}
32... Nxd2+ {[%clk 0:00:42.1]} 33. Bxd2 {[%clk 0:00:34.7]} 33... Ra4 {[%clk
0:00:40]} 34. Be3 {[%clk 0:00:33.9]} 34... Ke8 {[%clk 0:00:31.9]} 35. Be2 {[%clk
0:00:33.8]} 35... Rac4 {[%clk 0:00:28.8]} 36. Bxc4 {[%clk 0:00:32.6]} 36... bxc4
{[%clk 0:00:29.7]} 37. Ke2 {[%clk 0:00:31.5]} 37... Kd7 {[%clk 0:00:29.7]} 38.
Kf3 {[%clk 0:00:31.7]} 38... b5 {[%clk 0:00:29.4]} 39. Ke4 {[%clk 0:00:31.6]}
39... Ra8 {[%clk 0:00:29.1]} 40. Bd4 {[%clk 0:00:31.4]} 40... Bxd4 {[%clk
0:00:27.9]} 41. Kxd4 {[%clk 0:00:31.2]} 41... e5+ {[%clk 0:00:26.6]} 42. dxe6+
{[%clk 0:00:30]} 42... fxe6 {[%clk 0:00:27.5]} 43. h4 {[%clk 0:00:28.7]} 43...
e5+ {[%clk 0:00:25.4]} 44. Ke4 {[%clk 0:00:28]} 44... Ke6 {[%clk 0:00:25.3]} 45.
f4 {[%clk 0:00:22.1]} 45... exf4 {[%clk 0:00:23.1]} 46. gxf4 {[%clk 0:00:21.9]}
46... Rf8 {[%clk 0:00:21]} 47. Rd5 {[%clk 0:00:20.3]} 47... Rb8 {[%clk
0:00:04.8]} 48. Rg5 {[%clk 0:00:19.2]} 48... Kf6 {[%clk 0:00:04.8]} 49. Kd5
{[%clk 0:00:17.8]} 49... Rb6 {[%clk 0:00:04.5]} 50. Kd4 {[%clk 0:00:15.9]} 50...
Rb8 {[%clk 0:00:03.9]} 51. Kd5 {[%clk 0:00:15.1]} 51... Rb6 {[%clk 0:00:04.2]}
52. Kd4 {[%clk 0:00:15.2]} 52... Rb8 {[%clk 0:00:04.5]} 53. Ke4 {[%clk
0:00:16.1]} 53... Rb7 {[%clk 0:00:03.9]} 54. Kd4 {[%clk 0:00:15.8]} 54... Rb8
{[%clk 0:00:03.9]} 1/2-1/2